[Event "NJSK 2022 Jeugd A"]
[Site "Almelo, Netherlands"]
[Date "2022.05.01"]
[Round "1.1"]
[White "Van Dam, Thijs"]
[Black "Roebers, Eline"]
[Result "0-1"]
[TimeControl "90min/40moves + 30min + 30sec/move"]
[WhiteElo "1903"]
[BlackElo "2369"]

1. d4 {[%clk 01:30:30]} {[%emt 19:30:38]} f5 {[%clk 01:30:56]} {[%emt
00:01:01]} 2. Bg5 {[%clk 01:31:16]} {[%emt 00:00:09]} h6 {[%clk 01:30:38]}
{[%emt 00:00:49]} 3. Bh4 {[%clk 01:31:40]} {[%emt 00:00:06]} g5 {[%clk
01:30:50]} {[%emt 00:00:18]} 4. Bg3 {[%clk 01:32:00]} {[%emt 00:00:10]} Nf6
{[%clk 01:30:07]} {[%emt 00:01:13]} 5. e3 {[%clk 01:32:17]} {[%emt 00:00:12]}
Bg7 {[%clk 01:29:27]} {[%emt 00:01:10]} 6. Bc4 {[%clk 01:29:54]} {[%emt
00:02:53]} e6 {[%clk 01:23:01]} {[%emt 00:06:56]} 7. Be5 {[%clk 01:25:05]}
{[%emt 00:05:19]} d6 {[%clk 01:13:26]} {[%emt 00:10:06]} 8. Bxf6 {[%clk
01:23:52]} {[%emt 00:01:42]} Qxf6 {[%clk 01:13:52]} {[%emt 00:00:04]} 9. Qh5+
{[%clk 01:12:48]} {[%emt 00:11:34]} Kf8 {[%clk 01:14:15]} {[%emt 00:00:08]} 10.
Nc3 {[%clk 01:05:07]} {[%emt 00:08:11]} Bd7 {[%clk 01:03:43]} {[%emt 00:11:02]}
11. Qe2 {[%clk 01:03:10]} {[%emt 00:02:27]} d5 {[%clk 00:59:26]} {[%emt
00:04:47]} 12. Bb3 {[%clk 01:00:25]} {[%emt 00:03:15]} c5 {[%clk 00:56:41]}
{[%emt 00:03:15]} 13. dxc5 {[%clk 00:55:29]} {[%emt 00:05:26]} Na6 {[%clk
00:52:35]} {[%emt 00:04:36]} 14. Ba4 {[%clk 00:52:33]} {[%emt 00:03:26]} Qe7
{[%clk 00:43:37]} {[%emt 00:09:28]} 15. Qd2 {[%clk 00:46:37]} {[%emt 00:06:25]}
Bc6 {[%clk 00:41:38]} {[%emt 00:02:29]} 16. Bxc6 {[%clk 00:34:50]} {[%emt
00:30:14]} bxc6 {[%clk 00:42:01]} {[%emt 00:00:07]} 17. Na4 {[%clk 00:34:50]}
{[%emt 00:00:28]} Rb8 {[%clk 00:39:54]} {[%emt 00:02:39]} 18. c3 {[%clk
00:34:00]} {[%emt 00:01:20]} Nxc5 {[%clk 00:37:26]} {[%emt 00:02:59]} 19. Nxc5
{[%clk 00:34:00]} {[%emt 00:00:28]} Qxc5 {[%clk 00:37:51]} {[%emt 00:00:05]} 20.
Ne2 {[%clk 00:33:45]} {[%emt 00:00:45]} Qb6 {[%clk 00:36:30]} {[%emt 00:01:51]}
21. Rb1 {[%clk 00:33:02]} {[%emt 00:01:13]} Kf7 {[%clk 00:35:36]} {[%emt
00:01:24]} 22. O-O {[%clk 00:30:48]} {[%emt 00:02:43]} Rhf8 {[%clk 00:33:45]}
{[%emt 00:02:23]} 23. Nd4 {[%clk 00:28:54]} {[%emt 00:02:24]} c5 {[%clk
00:32:06]} {[%emt 00:02:09]} 24. Ne2 {[%clk 00:28:19]} {[%emt 00:01:04]} Kg8
{[%clk 00:32:30]} {[%emt 00:00:06]} 25. Rfd1 {[%clk 00:25:14]} {[%emt
00:03:35]} a5 {[%clk 00:29:52]} {[%emt 00:03:09]} 26. Qc2 {[%clk 00:23:32]}
{[%emt 00:02:12]} Qa6 {[%clk 00:23:28]} {[%emt 00:06:54]} 27. b3 {[%clk
00:19:32]} {[%emt 00:04:30]} Rbd8 {[%clk 00:16:08]} {[%emt 00:07:50]} 28. Rd2
{[%clk 00:18:34]} {[%emt 00:01:28]} Rf7 {[%clk 00:12:09]} {[%emt 00:04:28]} 29.
Rbd1 {[%clk 00:16:34]} {[%emt 00:02:29]} Rfd7 {[%clk 00:12:26]} {[%emt
00:00:14]} 30. c4 {[%clk 00:12:02]} {[%emt 00:05:03]} d4 {[%clk 00:10:27]}
{[%emt 00:02:29]} 31. Nc3 {[%clk 00:12:03]} {[%emt 00:00:28]} Rf7 {[%clk
00:07:29]} {[%emt 00:03:29]} 32. exd4 {[%clk 00:11:08]} {[%emt 00:01:25]} cxd4
{[%clk 00:07:38]} {[%emt 00:00:22]} 33. Nb5 {[%clk 00:10:48]} {[%emt 00:00:50]}
e5 {[%clk 00:07:41]} {[%emt 00:00:26]} 34. Nc3 {[%clk 00:10:36]} {[%emt
00:00:42]} e4 {[%clk 00:07:17]} {[%emt 00:00:54]} 35. Nd5 {[%clk 00:10:34]}
{[%emt 00:00:31]} d3 {[%clk 00:05:33]} {[%emt 00:02:14]} 36. Qc1 {[%clk
00:09:50]} {[%emt 00:01:15]} Qd6 {[%clk 00:05:50]} {[%emt 00:00:13]} 37. Re1
{[%clk 00:08:54]} {[%emt 00:01:25]} Be5 {[%clk 00:05:14]} {[%emt 00:01:07]} 38.
g3 {[%clk 00:08:26]} {[%emt 00:00:58]} Bd4 {[%clk 00:04:15]} {[%emt 00:01:28]}
39. Qd1 {[%clk 00:05:19]} {[%emt 00:03:38]} Qc5 {[%clk 00:02:58]} {[%emt
00:01:47]} 40. Qh5 {[%clk 00:01:09]} {[%emt 00:04:40]} Kg7 {[%clk 00:02:57]}
{[%emt 00:00:31]} 41. h4 {[%clk 00:21:57]} {[%emt 00:09:41]} Rxd5 {[%clk
00:31:22]} {[%emt 00:02:05]} 42. cxd5 {[%clk 00:20:57]} {[%emt 00:01:28]} g4
{[%clk 00:23:41]} {[%emt 00:08:13]} 43. Rb1 {[%clk 00:10:50]} {[%emt 00:10:37]}
Bc3 {[%clk 00:19:15]} {[%emt 00:04:56]} 44. Rdd1 {[%clk 00:09:56]} {[%emt
00:01:26]} d2 {[%clk 00:18:19]} {[%emt 00:01:26]} 45. Rf1 {[%clk 00:04:34]}
{[%emt 00:05:52]} Qxd5 {[%clk 00:17:50]} {[%emt 00:00:58]} 46. b4 {[%clk
00:04:38]} {[%emt 00:00:25]} axb4 {[%clk 00:18:05]} {[%emt 00:00:15]} 47. a3
{[%clk 00:04:49]} {[%emt 00:00:20]} b3 {[%clk 00:18:31]} {[%emt 00:00:04]} 48.
Rfd1 {[%clk 00:04:22]} {[%emt 00:00:57]} e3 {[%clk 00:18:43]} {[%emt 00:00:18]}
49. fxe3 {[%clk 00:02:48]} {[%emt 00:02:04]} Qf3 {[%clk 00:19:09]} {[%emt
00:00:04]} 50. Kh2 {[%clk 00:02:36]} {[%emt 00:00:42]} Qf2+ {[%clk 00:19:36]}
{[%emt 00:00:03]} 51. Kh1 {[%clk 00:03:01]} {[%emt 00:00:05]} Qxg3 {[%clk
00:20:00]} {[%emt 00:00:05]} 52. a4 {[%clk 00:02:18]} {[%emt 00:01:13]} Qh3+
{[%clk 00:20:27]} {[%emt 00:00:04]} 53. Kg1 {[%clk 00:02:44]} {[%emt 00:00:04]}
Qxe3+ {[%clk 00:20:54]} {[%emt 00:00:03]} 0-1

[Event "NJSK 2022 Jeugd A"]
[Site "Almelo, Netherlands"]
[Date "2022.05.01"]
[Round "1.2"]
[White "Elgersma, Onno"]
[Black "Van Kuijk, Vadim"]
[Result "1-0"]
[TimeControl "90min/40moves + 30min + 30sec/move"]
[WhiteElo "2303"]
[BlackElo "1898"]

1. e4 {[%clk 01:30:56]} {[%emt 00:00:02]} c6 {[%clk 01:30:55]} {[%emt
00:00:05]} 2. c4 {[%clk 01:30:53]} {[%emt 00:00:34]} d5 {[%clk 01:31:17]}
{[%emt 00:00:09]} 3. exd5 {[%clk 01:31:13]} {[%emt 00:00:10]} cxd5 {[%clk
01:31:38]} {[%emt 00:00:09]} 4. cxd5 {[%clk 01:31:33]} {[%emt 00:00:11]} Nf6
{[%clk 01:31:50]} {[%emt 00:00:17]} 5. Nc3 {[%clk 01:31:58]} {[%emt 00:00:05]}
g6 {[%clk 01:19:56]} {[%emt 00:12:23]} 6. Bb5+ {[%clk 01:30:53]} {[%emt
00:01:36]} Nbd7 {[%clk 01:13:03]} {[%emt 00:07:24]} 7. Qb3 {[%clk 01:24:54]}
{[%emt 00:06:27]} Bg7 {[%clk 01:04:50]} {[%emt 00:08:44]} 8. a4 {[%clk
01:24:19]} {[%emt 00:01:05]} O-O {[%clk 01:04:14]} {[%emt 00:01:07]} 9. d3
{[%clk 01:24:00]} {[%emt 00:00:48]} Nb6 {[%clk 01:02:31]} {[%emt 00:02:14]} 10.
Bc4 {[%clk 01:20:28]} {[%emt 00:04:01]} Re8 {[%clk 00:54:25]} {[%emt 00:08:37]}
11. Nge2 {[%clk 01:13:36]} {[%emt 00:07:22]} e6 {[%clk 00:50:57]} {[%emt
00:03:58]} 12. d6 {[%clk 01:01:14]} {[%emt 00:12:52]} Qxd6 {[%clk 00:47:00]}
{[%emt 00:04:26]} 13. Bf4 {[%clk 01:00:21]} {[%emt 00:01:22]} Qe7 {[%clk
00:45:57]} {[%emt 00:01:35]} 14. O-O {[%clk 00:58:51]} {[%emt 00:02:00]} Bd7
{[%clk 00:35:25]} {[%emt 00:11:01]} 15. a5 {[%clk 00:47:31]} {[%emt 00:11:52]}
Nxc4 {[%clk 00:32:19]} {[%emt 00:03:35]} 16. dxc4 {[%clk 00:47:40]} {[%emt
00:00:21]} e5 {[%clk 00:29:36]} {[%emt 00:21:18]} 17. Bg5 {[%clk 00:45:37]}
{[%emt 00:02:32]} Bc6 {[%clk 00:20:55]} {[%emt 00:09:12]} 18. Rfd1 {[%clk
00:45:00]} {[%emt 00:01:07]} Qe6 {[%clk 00:18:59]} {[%emt 00:02:26]} 19. Nd5
{[%clk 00:37:57]} {[%emt 00:07:32]} Rac8 {[%clk 00:11:46]} {[%emt 00:07:43]} 20.
Bxf6 {[%clk 00:34:21]} {[%emt 00:04:06]} Bxf6 {[%clk 00:12:08]} {[%emt
00:00:10]} 21. Qe3 {[%clk 00:34:38]} {[%emt 00:00:12]} Bg7 {[%clk 00:08:37]}
{[%emt 00:04:01]} 22. Qxa7 {[%clk 00:30:49]} {[%emt 00:04:19]} Qg4 {[%clk
00:05:01]} {[%emt 00:04:06]} 23. Qe3 {[%clk 00:29:29]} {[%emt 00:01:50]} Bxd5
{[%clk 00:05:01]} {[%emt 00:00:30]} 24. cxd5 {[%clk 00:29:03]} {[%emt
00:00:56]} Rc2 {[%clk 00:05:16]} {[%emt 00:00:15]} 25. Nd4 {[%clk 00:14:39]}
{[%emt 00:14:53]} Rxb2 {[%clk 00:04:37]} {[%emt 00:01:10]} 26. a6 {[%clk
00:13:10]} {[%emt 00:01:59]} bxa6 {[%clk 00:03:56]} {[%emt 00:01:11]} 27. Nc6
{[%clk 00:13:24]} {[%emt 00:00:16]} Re2 {[%clk 00:02:21]} {[%emt 00:02:05]} 28.
Qf3 {[%clk 00:10:47]} {[%emt 00:03:07]} Qxf3 {[%clk 00:02:18]} {[%emt
00:00:33]} 29. gxf3 {[%clk 00:11:14]} {[%emt 00:00:03]} e4 {[%clk 00:02:25]}
{[%emt 00:00:23]} 30. Rab1 {[%clk 00:07:12]} {[%emt 00:04:32]} exf3 {[%clk
00:01:10]} {[%emt 00:01:45]} 31. d6 {[%clk 00:07:19]} {[%emt 00:00:23]} Bf6
{[%clk 00:01:05]} {[%emt 00:00:35]} 32. d7 {[%clk 00:07:24]} {[%emt 00:00:26]}
R8e4 {[%clk 00:01:15]} {[%emt 00:00:20]} 33. h3 {[%clk 00:06:31]} {[%emt
00:01:23]} Rh4 {[%clk 00:00:49]} {[%emt 00:00:55]} 34. Rd6 {[%clk 00:04:51]}
{[%emt 00:02:10]} Bg5 {[%clk 00:00:52]} {[%emt 00:00:27]} 35. Nd4 {[%clk
00:02:43]} {[%emt 00:02:37]} Rd2 {[%clk 00:00:41]} {[%emt 00:00:42]} 36. d8=Q+
{[%clk 00:02:55]} {[%emt 00:00:19]} Bxd8 {[%clk 00:01:02]} {[%emt 00:00:07]} 37.
Rxd8+ {[%clk 00:03:22]} {[%emt 00:00:04]} Kg7 {[%clk 00:01:26]} {[%emt
00:00:06]} 38. Nf5+ {[%clk 00:03:42]} {[%emt 00:00:10]} 1-0

[Event "NJSK 2022 Jeugd A"]
[Site "Almelo, Netherlands"]
[Date "2022.05.01"]
[Round "1.3"]
[White "Bakker, Tycho"]
[Black "Pham, Khoi"]
[Result "0-1"]
[TimeControl "90min/40moves + 30min + 30sec/move"]
[WhiteElo "1857"]
[BlackElo "2291"]

1. d4 {[%clk 01:30:56]} {[%emt 00:00:03]} d5 {[%clk 01:30:51]} {[%emt
00:00:10]} 2. c4 {[%clk 01:31:20]} {[%emt 00:00:05]} c6 {[%clk 01:31:17]}
{[%emt 00:00:05]} 3. Nf3 {[%clk 01:31:34]} {[%emt 00:00:15]} Nf6 {[%clk
01:31:41]} {[%emt 00:00:06]} 4. Nc3 {[%clk 01:31:58]} {[%emt 00:00:06]} e6
{[%clk 01:32:07]} {[%emt 00:00:04]} 5. e3 {[%clk 01:32:22]} {[%emt 00:00:06]}
Nbd7 {[%clk 01:32:20]} {[%emt 00:00:17]} 6. Be2 {[%clk 01:32:44]} {[%emt
00:00:08]} Bd6 {[%clk 01:31:25]} {[%emt 00:01:26]} 7. O-O {[%clk 01:33:08]}
{[%emt 00:00:06]} O-O {[%clk 01:31:37]} {[%emt 00:00:18]} 8. b3 {[%clk
01:33:30]} {[%emt 00:00:07]} b6 {[%clk 01:28:42]} {[%emt 00:03:25]} 9. Bb2
{[%clk 01:33:55]} {[%emt 00:00:06]} Bb7 {[%clk 01:28:58]} {[%emt 00:00:15]} 10.
Bd3 {[%clk 01:32:19]} {[%emt 00:02:04]} Re8 {[%clk 01:22:31]} {[%emt 00:06:57]}
11. e4 {[%clk 01:24:24]} {[%emt 00:08:24]} dxe4 {[%clk 01:07:16]} {[%emt
00:15:46]} 12. Nxe4 {[%clk 01:24:40]} {[%emt 00:00:15]} Nxe4 {[%clk 00:59:15]}
{[%emt 00:08:31]} 13. Bxe4 {[%clk 01:24:56]} {[%emt 00:00:13]} Nf6 {[%clk
00:57:35]} {[%emt 00:02:10]} 14. Bc2 {[%clk 01:25:14]} {[%emt 00:00:13]} c5
{[%clk 00:49:16]} {[%emt 00:08:49]} 15. dxc5 {[%clk 01:16:37]} {[%emt
00:09:06]} Bxc5 {[%clk 00:49:40]} {[%emt 00:00:06]} 16. Qe2 {[%clk 01:16:56]}
{[%emt 00:00:11]} Nd7 {[%clk 00:38:06]} {[%emt 00:12:04]} 17. Rad1 {[%clk
00:58:04]} {[%emt 00:19:21]} Qe7 {[%clk 00:31:25]} {[%emt 00:07:12]} 18. Rxd7
{[%clk 00:19:39]} {[%emt 00:56:46]} Qxd7 {[%clk 00:31:49]} {[%emt 00:00:07]} 19.
Bxh7+ {[%clk 00:20:00]} {[%emt 00:00:08]} Kxh7 {[%clk 00:28:24]} {[%emt
00:03:55]} 20. Ng5+ {[%clk 00:19:21]} {[%emt 00:01:09]} Kg8 {[%clk 00:22:57]}
{[%emt 00:05:58]} 21. Qh5 {[%clk 00:19:45]} {[%emt 00:00:05]} e5 {[%clk
00:14:18]} {[%emt 00:09:10]} 22. Qh7+ {[%clk 00:15:32]} {[%emt 00:04:42]} Kf8
{[%clk 00:14:40]} {[%emt 00:00:08]} 23. Qh8+ {[%clk 00:15:52]} {[%emt
00:00:10]} Ke7 {[%clk 00:15:03]} {[%emt 00:00:07]} 24. Qxg7 {[%clk 00:16:19]}
{[%emt 00:00:02]} Qf5 {[%clk 00:14:58]} {[%emt 00:00:35]} 25. Bxe5 {[%clk
00:14:54]} {[%emt 00:01:56]} Kd7 {[%clk 00:10:33]} {[%emt 00:04:55]} 26. Nxf7
{[%clk 00:12:55]} {[%emt 00:02:29]} Rg8 {[%clk 00:06:13]} {[%emt 00:04:50]} 27.
Rd1+ {[%clk 00:11:52]} {[%emt 00:01:33]} Ke6 {[%clk 00:06:39]} {[%emt
00:00:04]} 28. Ng5+ {[%clk 00:10:38]} {[%emt 00:01:44]} Qxg5 {[%clk 00:07:04]}
{[%emt 00:00:05]} 29. Qd7+ {[%clk 00:10:29]} {[%emt 00:00:39]} Kxe5 {[%clk
00:07:29]} {[%emt 00:00:05]} 30. Re1+ {[%clk 00:09:28]} {[%emt 00:01:31]} Be4
{[%clk 00:06:47]} {[%emt 00:01:12]} 31. Qd5+ {[%clk 00:08:26]} {[%emt
00:01:32]} Kf6 {[%clk 00:07:13]} {[%emt 00:00:04]} 32. Qxe4 {[%clk 00:08:38]}
{[%emt 00:00:18]} Rae8 {[%clk 00:06:55]} {[%emt 00:00:48]} 33. Qc6+ {[%clk
00:07:24]} {[%emt 00:01:44]} Kf7 {[%clk 00:07:11]} {[%emt 00:00:14]} 34. Rd1
{[%clk 00:06:41]} {[%emt 00:01:12]} Bxf2+ {[%clk 00:05:58]} {[%emt 00:01:44]}
35. Kh1 {[%clk 00:06:29]} {[%emt 00:00:43]} Re1+ {[%clk 00:04:46]} {[%emt
00:01:41]} 36. Rxe1 {[%clk 00:06:54]} {[%emt 00:00:05]} Bxe1 {[%clk 00:05:11]}
{[%emt 00:00:05]} 37. Qd5+ {[%clk 00:06:17]} {[%emt 00:01:08]} Qxd5 {[%clk
00:05:34]} {[%emt 00:00:06]} 0-1

[Event "NJSK 2022 Jeugd A"]
[Site "Almelo, Netherlands"]
[Date "2022.05.01"]
[Round "1.4"]
[White "Van Foreest, Machteld"]
[Black "Hubers, Daan"]
[Result "1-0"]
[TimeControl "90min/40moves + 30min + 30sec/move"]
[WhiteElo "2287"]
[BlackElo "1818"]

1. e4 {[%clk 01:30:54]} {[%emt 00:00:05]} e6 {[%clk 01:30:00]} {[%emt
00:01:00]} 2. d4 {[%clk 01:31:11]} {[%emt 00:00:13]} d5 {[%clk 01:30:08]}
{[%emt 00:00:22]} 3. Nd2 {[%clk 01:31:22]} {[%emt 00:00:19]} c5 {[%clk
01:29:41]} {[%emt 00:00:57]} 4. exd5 {[%clk 01:31:43]} {[%emt 00:00:08]} exd5
{[%clk 01:30:00]} {[%emt 00:00:12]} 5. Ngf3 {[%clk 01:31:55]} {[%emt 00:00:17]}
Nc6 {[%clk 01:27:03]} {[%emt 00:03:28]} 6. Bb5 {[%clk 01:30:11]} {[%emt
00:02:14]} a6 {[%clk 01:23:10]} {[%emt 00:04:24]} 7. Bxc6+ {[%clk 01:28:41]}
{[%emt 00:01:59]} bxc6 {[%clk 01:23:37]} {[%emt 00:00:03]} 8. O-O {[%clk
01:29:06]} {[%emt 00:00:05]} cxd4 {[%clk 01:20:50]} {[%emt 00:03:17]} 9. Nxd4
{[%clk 01:24:35]} {[%emt 00:05:01]} c5 {[%clk 01:19:39]} {[%emt 00:01:41]} 10.
Re1+ {[%clk 01:22:56]} {[%emt 00:02:09]} Be7 {[%clk 01:14:58]} {[%emt
00:05:11]} 11. Nc6 {[%clk 01:21:32]} {[%emt 00:01:54]} Qc7 {[%clk 01:13:22]}
{[%emt 00:02:06]} 12. Nxe7 {[%clk 01:21:41]} {[%emt 00:00:22]} Nxe7 {[%clk
01:13:49]} {[%emt 00:00:03]} 13. Qe2 {[%clk 01:19:41]} {[%emt 00:02:29]} Be6
{[%clk 01:06:31]} {[%emt 00:07:48]} 14. Nf3 {[%clk 01:16:32]} {[%emt 00:03:39]}
h6 {[%clk 01:01:18]} {[%emt 00:05:43]} 15. b4 {[%clk 01:11:30]} {[%emt
00:05:32]} cxb4 {[%clk 00:52:58]} {[%emt 00:08:50]} 16. Nd4 {[%clk 01:04:00]}
{[%emt 00:08:00]} Qb6 {[%clk 00:47:47]} {[%emt 00:05:40]} 17. Bb2 {[%clk
00:50:24]} {[%emt 00:14:06]} O-O {[%clk 00:40:31]} {[%emt 00:07:48]} 18. Nxe6
{[%clk 00:45:14]} {[%emt 00:05:40]} fxe6 {[%clk 00:34:58]} {[%emt 00:23:56]} 19.
Qxe6+ {[%clk 00:45:12]} {[%emt 00:00:32]} Qxe6 {[%clk 00:35:19]} {[%emt
00:00:09]} 20. Rxe6 {[%clk 00:45:39]} {[%emt 00:00:03]} Kf7 {[%clk 00:22:00]}
{[%emt 00:13:49]} 21. Rae1 {[%clk 00:45:51]} {[%emt 00:00:19]} Ng6 {[%clk
00:20:37]} {[%emt 00:01:52]} 22. g3 {[%clk 00:45:46]} {[%emt 00:00:35]} Rfc8
{[%clk 00:17:51]} {[%emt 00:03:16]} 23. Rb6 {[%clk 00:40:15]} {[%emt 00:06:01]}
Ra7 {[%clk 00:16:09]} {[%emt 00:02:12]} 24. h4 {[%clk 00:31:10]} {[%emt
00:09:35]} Rxc2 {[%clk 00:14:34]} {[%emt 00:02:05]} 25. h5 {[%clk 00:31:26]}
{[%emt 00:00:14]} Ne7 {[%clk 00:14:40]} {[%emt 00:00:24]} 26. Rxb4 {[%clk
00:31:50]} {[%emt 00:00:06]} Nc6 {[%clk 00:13:27]} {[%emt 00:01:44]} 27. Rf4+
{[%clk 00:31:39]} {[%emt 00:00:40]} Kg8 {[%clk 00:13:43]} {[%emt 00:00:13]} 28.
Re8+ {[%clk 00:32:04]} {[%emt 00:00:06]} Kh7 {[%clk 00:14:06]} {[%emt
00:00:07]} 29. Rff8 {[%clk 00:32:29]} {[%emt 00:00:06]} 1-0

[Event "NJSK 2022 Jeugd A"]
[Site "Almelo, Netherlands"]
[Date "2022.05.01"]
[Round "1.5"]
[White "Boeren, Jurriaan"]
[Black "Albers, Sasa"]
[Result "0-1"]
[TimeControl "90min/40moves + 30min + 30sec/move"]
[WhiteElo "1778"]
[BlackElo "2117"]

1. e4 {[%clk 01:30:55]} {[%emt 00:00:04]} d5 {[%clk 01:30:45]} {[%emt
00:00:16]} 2. exd5 {[%clk 01:31:15]} {[%emt 00:00:11]} Qxd5 {[%clk 01:31:07]}
{[%emt 00:00:07]} 3. Nc3 {[%clk 01:31:37]} {[%emt 00:00:08]} Qd6 {[%clk
01:31:11]} {[%emt 00:00:25]} 4. d4 {[%clk 01:31:55]} {[%emt 00:00:13]} Nf6
{[%clk 01:31:15]} {[%emt 00:00:25]} 5. Bg5 {[%clk 01:31:14]} {[%emt 00:01:12]}
c6 {[%clk 01:23:59]} {[%emt 00:07:47]} 6. Qd2 {[%clk 01:29:23]} {[%emt
00:02:19]} Bf5 {[%clk 01:21:44]} {[%emt 00:02:45]} 7. Bf4 {[%clk 01:19:13]}
{[%emt 00:10:40]} Qd8 {[%clk 01:19:01]} {[%emt 00:03:13]} 8. Nf3 {[%clk
01:12:56]} {[%emt 00:06:48]} e6 {[%clk 01:17:15]} {[%emt 00:02:16]} 9. Bd3
{[%clk 01:09:46]} {[%emt 00:03:40]} Bxd3 {[%clk 01:05:28]} {[%emt 00:12:16]} 10.
Qxd3 {[%clk 01:10:07]} {[%emt 00:00:09]} Nbd7 {[%clk 01:05:38]} {[%emt
00:00:20]} 11. O-O {[%clk 01:03:08]} {[%emt 00:07:30]} Be7 {[%clk 01:04:43]}
{[%emt 00:01:24]} 12. h3 {[%clk 00:56:51]} {[%emt 00:06:47]} O-O {[%clk
01:04:26]} {[%emt 00:00:46]} 13. Rad1 {[%clk 00:48:33]} {[%emt 00:08:50]} Re8
{[%clk 01:01:26]} {[%emt 00:03:30]} 14. Rfe1 {[%clk 00:47:10]} {[%emt
00:01:53]} a5 {[%clk 00:52:20]} {[%emt 00:09:36]} 15. Bg3 {[%clk 00:26:38]}
{[%emt 00:21:02]} Qb6 {[%clk 00:41:09]} {[%emt 00:29:39]} 16. b3 {[%clk
00:21:35]} {[%emt 00:05:34]} Qa6 {[%clk 00:35:37]} {[%emt 00:06:02]} 17. Qxa6
{[%clk 00:19:48]} {[%emt 00:02:18]} Rxa6 {[%clk 00:36:02]} {[%emt 00:00:04]} 18.
Ne5 {[%clk 00:11:05]} {[%emt 00:09:13]} Nb6 {[%clk 00:31:02]} {[%emt 00:05:29]}
19. Ne4 {[%clk 00:08:10]} {[%emt 00:03:26]} Nxe4 {[%clk 00:31:05]} {[%emt
00:00:26]} 20. Rxe4 {[%clk 00:08:35]} {[%emt 00:00:06]} Nd5 {[%clk 00:31:03]}
{[%emt 00:00:32]} 21. Rd3 {[%clk 00:07:27]} {[%emt 00:01:38]} Nb4 {[%clk
00:13:36]} {[%emt 00:17:57]} 22. Rf3 {[%clk 00:07:25]} {[%emt 00:00:31]} Rf8
{[%clk 00:13:09]} {[%emt 00:00:57]} 23. Nd7 {[%clk 00:03:44]} {[%emt 00:04:12]}
Rd8 {[%clk 00:13:34]} {[%emt 00:00:05]} 24. Ne5 {[%clk 00:03:39]} {[%emt
00:00:35]} f5 {[%clk 00:07:51]} {[%emt 00:06:13]} 25. Re2 {[%clk 00:03:18]}
{[%emt 00:00:51]} Rxd4 {[%clk 00:08:12]} {[%emt 00:00:09]} 26. c3 {[%clk
00:02:05]} {[%emt 00:01:43]} Rd1+ {[%clk 00:08:38]} {[%emt 00:00:05]} 27. Kh2
{[%clk 00:02:30]} {[%emt 00:00:03]} Nd5 {[%clk 00:08:32]} {[%emt 00:00:36]} 28.
Nd7 {[%clk 00:01:20]} {[%emt 00:01:41]} f4 {[%clk 00:07:16]} {[%emt 00:01:46]}
29. c4 {[%clk 00:00:38]} {[%emt 00:01:13]} fxg3+ {[%clk 00:07:39]} {[%emt
00:00:06]} 30. Kxg3 {[%clk 00:00:59]} {[%emt 00:00:09]} Nf6 {[%clk 00:06:57]}
{[%emt 00:01:12]} 31. Nxf6+ {[%clk 00:00:45]} {[%emt 00:00:45]} Bxf6 {[%clk
00:07:18]} {[%emt 00:00:08]} 32. Rxe6 {[%clk 00:00:59]} {[%emt 00:00:16]} Ra8
{[%clk 00:07:23]} {[%emt 00:00:25]} 33. Kf4 {[%clk 00:00:52]} {[%emt 00:00:36]}
Kf7 {[%clk 00:07:24]} {[%emt 00:00:29]} 34. Rfe3 {[%clk 00:01:10]} {[%emt
00:00:13]} Rd2 {[%clk 00:07:29]} {[%emt 00:00:25]} 0-1